[Event "Nis GM 2019"]
[Site "Nis"]
[Date "2019.12.01"]
[Round "2.4"]
[White "Svetushkin, Dmitry"]
[Black "Djukic, Nikola"]
[Result "1/2-1/2"]
[ECO "B51"]
[WhiteElo "2547"]
[BlackElo "2507"]
[Annotator "ChessBase"]
[PlyCount "45"]
[EventDate "2019.11.30"]
[EventType "tourn"]
[EventCountry "SRB"]
[SourceTitle "playchess.com"]
[Source "ChessBase"]
[SourceQuality "1"]
[TimeControl "40/5400+30:1800+30"]

1. e4 c5 2. Nf3 d6 3. Bb5+ Nd7 4. c3 Ngf6 5. Bd3 e6 6. Bc2 b5 7. d4 Bb7 8. Nbd2 {[%emt 0:00:34]} Be7 {[%emt 0:03:01]} 9. O-O {[%emt 0:00:09]} Qc7 {[%emt 0:03:37]} 10. Re1 {[%emt 0:00:10]} O-O {[%emt 0:01:17]} 11. Bd3 {[%emt 0:03:06]} a6 {[%emt 0:12:34]} 12. Nf1 {[%emt 0:02:00]} cxd4 {[%emt 0:06:35]} 13. cxd4 {[%emt 0:03:59]} e5 {[%emt 0:00:05]} 14. d5 {[%emt 0:08:08]} Nh5 {[%emt 0:08:58]} 15. Be3 {[%emt 0:07:16]} Rfc8 {[%emt 0:07:54]} 16. Qd2 {[%emt 0:06:36]} Bd8 {[%emt 0:05:17]} 17. Rec1 {[%emt 0:21:07]} Qa5 {[%emt 0:17:02]} 18. Rxc8 {[%emt 0:04:37]} Rxc8 {[%emt 0:06:05]} 19. Qxa5 {[%emt 0:00:36]} Bxa5 {[%emt 0:00:05]} 20. a4 {[%emt 0:00:16]} b4 {[%emt 0:00:06]} 21. N1d2 {[%emt 0:00:13]} f5 {[%emt 0:02:47]} 22. Nc4 {[%emt 0:04:25]} Bc7 {[%emt 0:02:54]} 23. Ng5 {[%emt 0:04:21]} 1/2-1/2

[Event "Nis GM 2019"]
[Site "Nis"]
[Date "2019.12.01"]
[Round "2.5"]
[White "Maksimovic, Branimir"]
[Black "Radovanovic, Mihajlo"]
[Result "0-1"]
[ECO "B52"]
[WhiteElo "2320"]
[BlackElo "2479"]
[Annotator "ChessBase"]
[PlyCount "54"]
[EventDate "2019.11.30"]
[EventType "tourn"]
[EventCountry "SRB"]
[SourceTitle "playchess.com"]
[Source "ChessBase"]
[SourceQuality "1"]
[TimeControl "40/5400+30:1800+30"]

1. e4 {[%emt 0:00:00]} c5 {[%emt 0:00:00]} 2. Nf3 {[%emt 0:00:00]} d6 {[%emt 0:00:10]} 3. Bb5+ {[%emt 0:00:11]} Bd7 {[%emt 0:01:25]} 4. Bxd7+ {[%emt 0:00:47]} Qxd7 {[%emt 0:00:12]} 5. O-O {[%emt 0:02:44]} Nf6 {[%emt 0:00:22]} 6. e5 {[%emt 0:02:41]} dxe5 {[%emt 0:05:18]} 7. Nxe5 {[%emt 0:00:07]} Qd6 {[%emt 0:07:59]} 8. Re1 {[%emt 0:18:08]} Nc6 {[%emt 0:01:42]} 9. Nc4 {[%emt 0:00:22]} Qc7 {[%emt 0:05:53]} 10. Nc3 {[%emt 0:00:24]} e6 {[%emt 0:00:40]} 11. a4 {[%emt 0:10:37]} Be7 {[%emt 0:01:42]} 12. Ra3 {[%emt 0:07:41]} O-O {[%emt 0:02:48]} 13. Ne4 {[%emt 0:08:50]} Nd5 {[%emt 0:07:42]} 14. Rg3 {[%emt 0:07:11]} f5 {[%emt 0:06:20]} 15. Nc3 {[%emt 0:08:27]} Bh4 {[%emt 0:03:16]} 16. Rxe6 {[%emt 0:02:58]} Bxg3 {[%emt 0:01:11]} 17. hxg3 {[%emt 0:02:05]} Qf7 {[%emt 0:01:24]} 18. Rxc6 {[%emt 0:04:37]} bxc6 {[%emt 0:01:51]} 19. Ne5 {[%emt 0:02:22]} Nxc3 {[%emt 0:03:41]} 20. dxc3 {[%emt 0:02:31]} Qd5 {[%emt 0:00:09]} 21. Qe2 {[%emt 0:00:10]} Rad8 {[%emt 0:02:03]} 22. Kh2 {[%emt 0:00:10]} Rfe8 {[%emt 0:01:01]} 23. f4 {[%emt 0:01:06]} Re6 {[%emt 0:01:28]} 24. g4 {[%emt 0:00:33]} fxg4 {[%emt 0:03:53]} 25. Qxg4 {[%emt 0:00:12]} Rh6+ {[%emt 0:00:13]} 26. Kg3 {[%emt 0:00:10]} Qe4 {[%emt 0:00:34]} 27. Qf3 {[%emt 0:00:44]} Qe1+ {[%emt 0:00:31]} 0-1

[Event "Nis GM 2019"]
[Site "Nis"]
[Date "2019.12.02"]
[Round "3.2"]
[White "Miljkovic, Miroslav D"]
[Black "Dimitrov, Radoslav"]
[Result "1/2-1/2"]
[ECO "A53"]
[WhiteElo "2496"]
[BlackElo "2515"]
[Annotator "RC"]
[PlyCount "155"]
[EventDate "2019.11.30"]
[EventType "tourn"]
[EventCountry "SRB"]
[TimeControl "40/5400+30:1800+30"]

1. d4 {[%emt 0:00:00]} Nf6 {[%emt 0:00:00]} 2. c4 {[%emt 0:00:00]} d6 {[%emt 0:00:00]} 3. Nf3 {[%emt 0:00:44]} g6 {[%emt 0:00:00]} 4. Nc3 {[%emt 0:00:20]} Bf5 {[%emt 0:00:00]} 5. Ng5 {[%emt 0:01:01]} h6 {[%emt 0:03:42]} 6. e4 {[%emt 0:00:11]} Bg4 {[%emt 0:00:04]} 7. Nf3 {[%emt 0:00:36]} Nc6 {[%emt 0:01:31]} 8. Be3 {[%emt 0:01:37]} e5 {[%emt 0:05:53]} 9. d5 {[%emt 0:02:29]} Ne7 {[%emt 0:00:02]} 10. c5 {[%emt 0:03:19]} Bg7 {[%emt 0:04:16]} 11. Qa4+ {[%emt 0:14:56]} Bd7 {[%emt 0:02:59]} 12. Qa3 {[%emt 0:01:03]} dxc5 {[%emt 0:03:23]} 13. Bxc5 {[%emt 0:00:55]} b6 {[%emt 0:00:10]} 14. Bb4 {[%emt 0:11:16]} a5 {[%emt 0:01:09]} 15. Nb5 {[%emt 0:04:05]} Bxb5 {[%emt 0:43:21]} 16. Bxb5+ {[%emt 0:02:26]} Kf8 {[%emt 0:00:01]} 17. Bxe7+ {[%emt 0:14:55]} Qxe7 {[%emt 0:00:02]} 18. Qxe7+ {[%emt 0:11:31]} Kxe7 {[%emt 0:00:01]} 19. Rc1 {[%emt 0:04:54]} c5 {[%emt 0:05:26]} 20. dxc6 {[%emt 0:08:13]} Nxe4 {[%emt 0:01:38]} 21. Nd2 {[%emt 0:01:52]} Nd6 {[%emt 0:04:52]} 22. a4 {[%emt 0:00:13]} e4 {[%emt 0:00:08]} 23. Nc4 {[%emt 0:01:04]} Nxc4 {[%emt 0:04:09]} 24. Rxc4 {[%emt 0:00:13]} f5 {[%emt 0:00:02]} 25. Ke2 {[%emt 0:01:01]} Bxb2 {[%emt 0:09:08]} 26. Rd1 {[%emt 0:00:36]} Ba3 {[%emt 0:00:23]} 27. Rcd4 {[%emt 0:03:16]} Rhc8 {[%emt 0:06:02]} 28. Rd7+ {[%emt 0:00:15]} Kf6 {[%emt 0:00:01]} 29. Rb7 {[%emt 0:02:59]} Ke5 {[%emt 0:01:18]} 30. Rg7 {[%emt 0:01:12]} Rg8 {[%emt 0:01:29]} 31. Rgd7 {[%emt 0:01:55]} Rgc8 {[%emt 0:00:42]} 32. R1d5+ {[%emt 0:00:34]} Kf6 {[%emt 0:00:27]} 33. Rb7 {[%emt 0:00:35]} Bc5 {[%emt 0:02:17]} 34. Rdd7 {[%emt 0:00:57]} Ke5 {[%emt 0:00:31]} 35. Rg7 {[%emt 0:00:16]} g5 {[%emt 0:01:10]} 36. Rg6 {[%emt 0:01:43]} Rd8 {[%emt 0:00:57]} 37. c7 {[%emt 0:00:44]} Rh8 {[%emt 0:00:38]} 38. Bd7 {[%emt 0:01:22]} Bd6 {[%emt 0:00:02]} 39. g3 {[%emt 0:03:11]} f4 {[%emt 0:00:21]} 40. gxf4+ {[%emt 0:00:00]} gxf4 {[%emt 0:00:00]} 41. f3 {[%emt 0:01:47]} exf3+ {[%emt 0:04:54]} 42. Kxf3 {[%emt 0:00:03]} Kd5 {[%emt 0:00:25]} 43. h4 {[%emt 0:04:56]} h5 {[%emt 0:05:27]} 44. Rg5+ {[%emt 0:00:29]} Kd4 {[%emt 0:00:01]} 45. Be6 {[%emt 0:06:35]} Bc5 {[%emt 0:04:42]} 46. Bf7 {[%emt 0:03:29]} Rac8 {[%emt 0:00:59]} 47. Rd5+ {[%emt 0:03:53]} Kc3 {[%emt 0:00:05]} 48. Rxh5 {[%emt 0:00:20]} Rxh5 {[%emt 0:03:11]} 49. Bxh5 {[%emt 0:00:02]} Bd6 {[%emt 0:00:08]} 50. Rxb6 {[%emt 0:00:11]} Be5 {[%emt 0:00:09]} 51. Rb5 {[%emt 0:06:21]} Bf6 {[%emt 0:03:15]} 52. Rc5+ {[%emt 0:02:42]} Kd4 {[%emt 0:00:18]} 53. Rc1 {[%emt 0:03:53]} Be5 {[%emt 0:00:10]} 54. Rd1+ {[%emt 0:00:35]} Kc5 {[%emt 0:00:42]} 55. Bf7 {[%emt 0:00:23]} Bxc7 {[%emt 0:01:08]} 56. h5 {[%emt 0:00:16]} Rf8 {[%emt 0:02:34]} 57. Rd5+ {[%emt 0:00:17]} Kb4 {[%emt 0:01:15]} 58. Rd4+ {[%emt 0:01:15]} Ka3 {[%emt 0:00:02]} 59. Bg6 {[%emt 0:00:40]} Be5 {[%emt 0:01:02]} 60. Re4 {[%emt 0:00:23]} Bc3 {[%emt 0:01:52]} 61. Be8 {[%emt 0:00:52]} Bb4 {[%emt 0:02:00]} 62. Re6 {[%emt 0:01:13]} Bc3 {[%emt 0:01:00]} 63. Bb5 {[%emt 0:00:29]} Rf5 {[%emt 0:01:01]} 64. Kg4 {[%emt 0:00:53]} Rf8 {[%emt 0:00:11]} 65. Kf3 {[%emt 0:00:11]} Rf5 {[%emt 0:00:01]} 66. Be8 {[%emt 0:00:28]} Rf8 {[%emt 0:04:26]} 67. h6 {[%emt 0:00:28]} Rh8 {[%emt 0:00:01]} 68. Bc6 {[%emt 0:00:25]} Bb4 {[%emt 0:00:06]} 69. Bb5 {[%emt 0:01:53]} Kb3 {[%emt 0:00:37]} 70. Rc6 {[%emt 0:00:17]} Ka3 {[%emt 0:00:49]} 71. Re6 {[%emt 0:00:17]} Kb3 {[%emt 0:00:06]} 72. Rf6 {[%emt 0:00:41]} Ka3 {[%emt 0:02:26]} 73. Kg4 {[%emt 0:00:17]} Bc3 {[%emt 0:01:16]} 74. Rd6 {[%emt 0:00:23]} Kb4 {[%emt 0:00:58]} 75. Rc6 {[%emt 0:00:33]} f3 {[%emt 0:00:30]} 76. Kxf3 {[%emt 0:00:59]} Bd2 {[%emt 0:00:02]} 77. Rc4+ {[%emt 0:00:31]} Kb3 {[%emt 0:00:48]} 78. Rc6 {[%emt 0:00:28]} 1/2-1/2

[Event "Nis GM 2019"]
[Site "Nis"]
[Date "2019.12.02"]
[Round "3.3"]
[White "Djukic, Nikola"]
[Black "Perunovic, Miodrag"]
[Result "0-1"]
[ECO "B35"]
[WhiteElo "2507"]
[BlackElo "2433"]
[Annotator "ChessBase"]
[PlyCount "66"]
[EventDate "2019.11.30"]
[EventType "tourn"]
[EventCountry "SRB"]
[SourceTitle "playchess.com"]
[Source "ChessBase"]
[SourceQuality "1"]
[TimeControl "40/5400+30:1800+30"]

1. e4 {[%emt 0:00:00]} c5 {[%emt 0:01:40]} 2. Nf3 {[%emt 0:00:00]} g6 {[%emt 0:00:07]} 3. d4 {[%emt 0:00:41]} cxd4 {[%emt 0:00:10]} 4. Nxd4 {[%emt 0:00:06]} Nc6 {[%emt 0:00:08]} 5. Nc3 {[%emt 0:00:16]} Bg7 {[%emt 0:00:09]} 6. Be3 {[%emt 0:00:07]} Nf6 {[%emt 0:00:07]} 7. Bc4 {[%emt 0:00:07]} O-O {[%emt 0:00:10]} 8. Bb3 {[%emt 0:00:05]} Re8 {[%emt 0:00:07]} 9. O-O {[%emt 0:09:55]} d6 {[%emt 0:00:08]} 10. h3 {[%emt 0:00:06]} Na5 {[%emt 0:00:06]} 11. Qd2 {[%emt 0:03:15]} a6 {[%emt 0:00:09]} 12. Bh6 {[%emt 0:02:58]} Bh8 {[%emt 0:10:53]} 13. Rae1 {[%emt 0:37:41]} b5 {[%emt 0:02:53]} 14. f4 {[%emt 0:01:12]} e5 {[%emt 0:13:00]} 15. Nde2 {[%emt 0:10:44]} Nxb3 {[%emt 0:02:32]} 16. axb3 {[%emt 0:03:33]} b4 {[%emt 0:08:38]} 17. Na4 {[%emt 0:04:02]} Nxe4 {[%emt 0:00:24]} 18. Qxb4 {[%emt 0:00:14]} Bf5 {[%emt 0:00:13]} 19. fxe5 {[%emt 0:02:53]} Rb8 {[%emt 0:07:32]} 20. Qd4 {[%emt 0:03:11]} dxe5 {[%emt 0:01:11]} 21. Qxd8 {[%emt 0:01:08]} Rexd8 {[%emt 0:00:15]} 22. g4 {[%emt 0:02:35]} Be6 {[%emt 0:03:11]} 23. Nec3 {[%emt 0:01:35]} Nxc3 {[%emt 0:00:15]} 24. bxc3 {[%emt 0:00:04]} f5 {[%emt 0:05:19]} 25. Nc5 {[%emt 0:06:00]} Bc8 {[%emt 0:00:02]} 26. gxf5 {[%emt 0:03:45]} gxf5 {[%emt 0:00:37]} 27. Re2 {[%emt 0:01:22]} Rb6 {[%emt 0:00:33]} 28. Rg2+ {[%emt 0:04:30]} Kf7 {[%emt 0:00:15]} 29. Bc1 {[%emt 0:01:20]} f4 {[%emt 0:04:26]} 30. Ne4 {[%emt 0:00:11]} Bf5 {[%emt 0:00:08]} 31. Re2 {[%emt 0:01:08]} Rg8+ {[%emt 0:01:13]} 32. Kh2 {[%emt 0:00:08]} Bxh3 {[%emt 0:01:41]} 33. Rg1 {[%emt 0:00:45]} Bg4 {[%emt 0:00:14]} 0-1

[Event "Nis GM 2019"]
[Site "Nis"]
[Date "2019.12.02"]
[Round "3.4"]
[White "Radovanovic, Mihajlo"]
[Black "Svetushkin, Dmitry"]
[Result "1/2-1/2"]
[ECO "D15"]
[WhiteElo "2479"]
[BlackElo "2547"]
[Annotator "ChessBase"]
[PlyCount "86"]
[EventDate "2019.11.30"]
[EventType "tourn"]
[EventCountry "SRB"]
[SourceTitle "playchess.com"]
[Source "ChessBase"]
[SourceQuality "1"]
[TimeControl "40/5400+30:1800+30"]

1. d4 {[%emt 0:00:00]} d5 {[%emt 0:00:00]} 2. c4 {[%emt 0:00:00]} c6 {[%emt 0:00:24]} 3. Nf3 {[%emt 0:00:00]} Nf6 {[%emt 0:00:11]} 4. Nc3 {[%emt 0:00:00]} a6 {[%emt 0:01:13]} 5. c5 {[%emt 0:01:43]} g6 {[%emt 0:00:20]} 6. g3 {[%emt 0:01:43]} Bg7 {[%emt 0:00:47]} 7. Bg2 {[%emt 0:00:05]} Bf5 {[%emt 0:00:59]} 8. O-O {[%emt 0:01:27]} Qc8 {[%emt 0:01:15]} 9. Na4 {[%emt 0:04:25]} Nbd7 {[%emt 0:00:13]} 10. Nh4 {[%emt 0:01:40]} Be6 {[%emt 0:00:32]} 11. Qd3 {[%emt 0:14:39]} O-O {[%emt 0:03:46]} 12. f3 {[%emt 0:04:10]} Ne8 {[%emt 0:04:30]} 13. e4 {[%emt 0:08:23]} Bf6 {[%emt 0:00:49]} 14. Bh6 {[%emt 0:03:13]} Ng7 {[%emt 0:00:10]} 15. Qe3 {[%emt 0:14:08]} Qc7 {[%emt 0:15:31]} 16. Bg5 {[%emt 0:04:23]} Bxg5 {[%emt 0:04:33]} 17. Qxg5 {[%emt 0:00:28]} dxe4 {[%emt 0:01:03]} 18. fxe4 {[%emt 0:01:37]} Bc4 {[%emt 0:00:48]} 19. Rfc1 {[%emt 0:03:31]} Bb5 {[%emt 0:06:24]} 20. Nc3 {[%emt 0:00:34]} e5 {[%emt 0:00:11]} 21. d5 {[%emt 0:03:51]} b6 {[%emt 0:04:06]} 22. cxb6 {[%emt 0:05:15]} Qxb6+ {[%emt 0:02:42]} 23. Kh1 {[%emt 0:00:06]} cxd5 {[%emt 0:08:48]} 24. Nxd5 {[%emt 0:01:01]} Qf2 {[%emt 0:04:26]} 25. a4 {[%emt 0:00:51]} Bd3 {[%emt 0:02:53]} 26. Rc7 {[%emt 0:01:42]} Ne6 {[%emt 0:02:14]} 27. Ne7+ {[%emt 0:05:14]} Kg7 {[%emt 0:07:06]} 28. Nhf5+ {[%emt 0:00:23]} Kh8 {[%emt 0:00:09]} 29. Nxg6+ {[%emt 0:05:56]} fxg6 {[%emt 0:00:39]} 30. Qe7 {[%emt 0:00:05]} Rad8 {[%emt 0:02:22]} 31. Rxd7 {[%emt 0:03:59]} Rxd7 {[%emt 0:00:33]} 32. Qxd7 {[%emt 0:00:50]} Qxb2 {[%emt 0:03:22]} 33. Rd1 {[%emt 0:02:55]} Bc4 {[%emt 0:03:33]} 34. Nd6 {[%emt 0:01:54]} Qb3 {[%emt 0:11:04]} 35. Nxc4 {[%emt 0:01:13]} Rd8 {[%emt 0:01:23]} 36. Qxd8+ {[%emt 0:01:13]} Nxd8 {[%emt 0:00:05]} 37. Rxd8+ {[%emt 0:00:07]} Kg7 {[%emt 0:00:06]} 38. Nd2 {[%emt 0:00:42]} Qxa4 {[%emt 0:00:06]} 39. Bf1 {[%emt 0:01:00]} a5 {[%emt 0:00:05]} 40. Bc4 {[%emt 0:00:00]} Qd1+ {[%emt 0:00:00]} 41. Kg2 {[%emt 0:02:49]} a4 {[%emt 0:00:36]} 42. Rd7+ {[%emt 0:00:29]} Kh8 {[%emt 0:02:23]} 43. Rd8+ {[%emt 0:03:54]} Kg7 {[%emt 0:03:09]} 1/2-1/2

[Event "Nis GM 2019"]
[Site "Nis"]
[Date "2019.12.02"]
[Round "3.5"]
[White "Nikolaidis, Ioannis"]
[Black "Maksimovic, Branimir"]
[Result "1-0"]
[ECO "D41"]
[WhiteElo "2531"]
[BlackElo "2320"]
[Annotator "ChessBase"]
[PlyCount "65"]
[EventDate "2019.11.30"]
[EventType "tourn"]
[EventCountry "SRB"]
[SourceTitle "playchess.com"]
[Source "ChessBase"]
[SourceQuality "1"]
[TimeControl "40/5400+30:1800+30"]

1. d4 {[%emt 0:00:00]} Nf6 {[%emt 0:00:00]} 2. c4 {[%emt 0:00:00]} e6 {[%emt 0:00:00]} 3. Nf3 {[%emt 0:00:12]} d5 {[%emt 0:00:00]} 4. Nc3 {[%emt 0:00:17]} c5 {[%emt 0:00:16]} 5. cxd5 {[%emt 0:00:29]} Nxd5 {[%emt 0:00:07]} 6. e4 {[%emt 0:04:29]} Nxc3 {[%emt 0:00:07]} 7. bxc3 {[%emt 0:00:02]} cxd4 {[%emt 0:00:15]} 8. cxd4 {[%emt 0:00:04]} Bb4+ {[%emt 0:00:17]} 9. Bd2 {[%emt 0:00:02]} Bxd2+ {[%emt 0:00:10]} 10. Qxd2 {[%emt 0:00:02]} O-O {[%emt 0:00:18]} 11. Rc1 {[%emt 0:00:21]} Nc6 {[%emt 0:06:04]} 12. Bb5 {[%emt 0:03:25]} Bd7 {[%emt 0:05:30]} 13. O-O {[%emt 0:14:43]} Ne5 {[%emt 0:01:07]} 14. Be2 {[%emt 0:01:22]} Nxf3+ {[%emt 0:12:32]} 15. Bxf3 {[%emt 0:01:01]} Bb5 {[%emt 0:06:02]} 16. Rfd1 {[%emt 0:09:19]} Ba4 {[%emt 0:00:19]} 17. Re1 {[%emt 0:00:12]} Qd7 {[%emt 0:00:45]} 18. d5 {[%emt 0:02:58]} exd5 {[%emt 0:17:02]} 19. exd5 {[%emt 0:00:18]} Rfe8 {[%emt 0:01:05]} 20. Qf4 {[%emt 0:07:04]} Rxe1+ {[%emt 0:14:26]} 21. Rxe1 {[%emt 0:00:05]} Re8 {[%emt 0:00:07]} 22. Rc1 {[%emt 0:07:01]} Bb5 {[%emt 0:15:30]} 23. h4 {[%emt 0:09:49]} Rc8 {[%emt 0:02:36]} 24. Re1 {[%emt 0:11:20]} Re8 {[%emt 0:01:29]} 25. Rxe8+ {[%emt 0:05:08]} Qxe8 {[%emt 0:00:02]} 26. Qc7 {[%emt 0:00:20]} Qe1+ {[%emt 0:08:40]} 27. Kh2 {[%emt 0:00:07]} Be8 {[%emt 0:00:06]} 28. d6 {[%emt 0:08:22]} Qe5+ {[%emt 0:01:00]} 29. g3 {[%emt 0:00:16]} Kf8 {[%emt 0:03:39]} 30. Bxb7 {[%emt 0:02:39]} g6 {[%emt 0:00:07]} 31. Bg2 {[%emt 0:06:03]} a5 {[%emt 0:03:28]} 32. Qd8 {[%emt 0:01:48]} Qe6 {[%emt 0:01:40]} 33. Bc6 {[%emt 0:01:18]} 1-0

[Event "Nis GM 2019"]
[Site "Nis"]
[Date "2019.12.03"]
[Round "4.3"]
[White "Perunovic, Miodrag"]
[Black "Radovanovic, Mihajlo"]
[Result "0-1"]
[ECO "A45"]
[WhiteElo "2433"]
[BlackElo "2479"]
[Annotator "ChessBase"]
[PlyCount "118"]
[EventDate "2019.11.30"]
[EventType "tourn"]
[EventCountry "SRB"]
[SourceTitle "playchess.com"]
[Source "ChessBase"]
[SourceQuality "1"]
[TimeControl "40/5400+30:1800+30"]

1. d4 {[%emt 0:10:27]} Nf6 {[%emt 0:00:00]} 2. Bf4 {[%emt 0:00:07]} c5 {[%emt 0:02:01]} 3. d5 {[%emt 0:00:06]} b5 {[%emt 0:01:26]} 4. f3 {[%emt 0:13:04]} e6 {[%emt 0:08:39]} 5. e4 {[%emt 0:05:36]} c4 {[%emt 0:00:33]} 6. a4 {[%emt 0:02:49]} Bc5 {[%emt 0:02:56]} 7. dxe6 {[%emt 0:05:43]} fxe6 {[%emt 0:00:59]} 8. Bd6 {[%emt 0:00:43]} Qb6 {[%emt 0:13:14]} 9. Bxc5 {[%emt 0:00:07]} Qxc5 {[%emt 0:00:03]} 10. Nc3 {[%emt 0:04:20]} O-O {[%emt 0:05:57]} 11. axb5 {[%emt 0:03:48]} d5 {[%emt 0:05:27]} 12. Nge2 {[%emt 0:00:20]} Nxe4 {[%emt 0:01:38]} 13. Nxe4 {[%emt 0:01:42]} dxe4 {[%emt 0:00:06]} 14. Qd4 {[%emt 0:00:45]} Qxb5 {[%emt 0:05:25]} 15. fxe4 {[%emt 0:07:20]} Nc6 {[%emt 0:03:07]} 16. Qc3 {[%emt 0:00:01]} Nb4 {[%emt 0:13:04]} 17. Ng3 {[%emt 0:10:57]} Ba6 {[%emt 0:06:43]} 18. Be2 {[%emt 0:02:16]} Rac8 {[%emt 0:06:26]} 19. Rf1 {[%emt 0:02:05]} Rfd8 {[%emt 0:01:02]} 20. Nh5 {[%emt 0:06:58]} e5 {[%emt 0:01:42]} 21. Rf3 {[%emt 0:02:14]} Rd4 {[%emt 0:04:50]} 22. Ng3 {[%emt 0:04:28]} Rcd8 {[%emt 0:02:07]} 23. Kf1 {[%emt 0:04:05]} Rd2 {[%emt 0:03:18]} 24. Rxa6 {[%emt 0:04:47]} Rxc2 {[%emt 0:01:03]} 25. Bxc4+ {[%emt 0:00:28]} Qxc4+ {[%emt 0:00:07]} 26. Qxc4+ {[%emt 0:00:07]} Rxc4 {[%emt 0:00:05]} 27. Ra1 {[%emt 0:03:11]} Rc2 {[%emt 0:04:02]} 28. Rb3 {[%emt 0:00:02]} a5 {[%emt 0:02:26]} 29. Nf5 {[%emt 0:01:47]} g6 {[%emt 0:02:58]} 30. Ne3 {[%emt 0:00:09]} Rf8+ {[%emt 0:00:07]} 31. Kg1 {[%emt 0:00:17]} Re2 {[%emt 0:00:07]} 32. h3 {[%emt 0:00:49]} Nc6 {[%emt 0:00:15]} 33. Rf1 {[%emt 0:01:28]} Nd4 {[%emt 0:01:04]} 34. Rxf8+ {[%emt 0:00:36]} Kxf8 {[%emt 0:00:00]} 35. Rb8+ {[%emt 0:00:07]} Kf7 {[%emt 0:01:12]} 36. Rb7+ {[%emt 0:00:08]} Ke6 {[%emt 0:00:20]} 37. Rb6+ {[%emt 0:00:08]} Kd7 {[%emt 0:00:49]} 38. Nd5 {[%emt 0:00:25]} Rxe4 {[%emt 0:00:57]} 39. Nf6+ {[%emt 0:00:42]} Kc7 {[%emt 0:00:03]} 40. Ra6 {[%emt 0:00:00]} Re1+ {[%emt 0:00:00]} 41. Kh2 {[%emt 0:15:33]} e4 {[%emt 0:12:39]} 42. Nd5+ {[%emt 0:03:33]} Kc8 {[%emt 0:02:12]} 43. Rxa5 {[%emt 0:00:12]} e3 {[%emt 0:00:21]} 44. Nc3 {[%emt 0:00:02]} h5 {[%emt 0:04:26]} 45. Kg3 {[%emt 0:01:33]} Rf1 {[%emt 0:02:13]} 46. Kh4 {[%emt 0:01:34]} Rg1 {[%emt 0:04:19]} 47. Kg3 {[%emt 0:01:51]} h4+ {[%emt 0:01:18]} 48. Kh2 {[%emt 0:04:46]} Rf1 {[%emt 0:01:00]} 49. Rc5+ {[%emt 0:00:04]} Kb7 {[%emt 0:00:06]} 50. Re5 {[%emt 0:01:53]} Nf5 {[%emt 0:00:14]} 51. Re4 {[%emt 0:02:37]} g5 {[%emt 0:00:22]} 52. Rg4 {[%emt 0:00:13]} Ng3 {[%emt 0:01:07]} 53. Rxg3 {[%emt 0:00:02]} hxg3+ {[%emt 0:00:07]} 54. Kxg3 {[%emt 0:00:07]} Kc6 {[%emt 0:01:01]} 55. Kg4 {[%emt 0:00:30]} Kc5 {[%emt 0:01:21]} 56. Kxg5 {[%emt 0:00:15]} Rc1 {[%emt 0:00:46]} 57. Ne4+ {[%emt 0:01:19]} Kd4 {[%emt 0:00:35]} 58. Ng3 {[%emt 0:00:02]} Kd3 {[%emt 0:00:18]} 59. Kg4 {[%emt 0:03:17]} Rc8 {[%emt 0:00:44]} 0-1